fUST/lending_fUST_20250225
["ID","MTS","AMOUNT","RATE_DAILY","PERIOD"]
[354409325,1740475840874,-1854.12,0.00070955,120]
[354409327,1740475840883,-500.0,0.00070955,120]
[354409329,1740475840892,-500.0,0.00070955,120]
[354409331,1740475840901,-557.0,0.00070955,120]
[354409333,1740475840910,-500.0,0.00070955,120]
[354409334,1740475840919,-500.0,0.00070955,120]
[354409337,1740475840929,-713.01,0.00070955,120]
[354409338,1740475840938,-2917.46,0.00070955,120]
[354409340,1740475840947,-4305.12,0.00070955,120]
[354409343,1740475840957,-500.0,0.00070955,120]
[354409345,1740475840966,-500.0,0.00070955,120]
[354409346,1740475840975,-984.11,0.00070956,120]
[354409348,1740475840984,-500.0,0.00070956,120]
[354409350,1740475840994,-314.33127923,0.00070956,120]
[354409352,1740475841005,-500.0,0.00070956,120]
[354409354,1740475841014,-500.0,0.00070956,120]
[354409356,1740475841023,-500.0,0.00070956,120]
[354409358,1740475841032,-500.0,0.00070956,120]
[354409360,1740475841041,-500.0,0.00070956,120]
[354409362,1740475841050,-500.0,0.00070956,120]
[354409364,1740475841060,-500.0,0.00070956,120]
[354409366,1740475841069,-500.0,0.00070956,120]
[354409368,1740475841078,-436.1,0.0007109,120]
[354409370,1740475841088,-500.0,0.0007109,3]
[354409372,1740475841097,-500.0,0.0007109,120]
[354409374,1740475841106,-500.0,0.0007109,120]
[354409376,1740475841116,-500.0,0.0007109,120]
[354409378,1740475841128,-500.0,0.0007109,120]
[354409380,1740475841137,-4390.78,0.0007109,7]
[354409382,1740475841147,-500.0,0.00071094,120]
[354409384,1740475841156,-1401.18,0.00071094,120]
[354409386,1740475841165,-504.60634579,0.0007121,15]
[354409388,1740475841174,-181.99260435,0.0007122,6]
[354409390,1740475841184,-500.0,0.00071229,120]
[354409392,1740475841193,-500.0,0.00071229,120]
[354409394,1740475841203,-500.0,0.00071229,120]
[354409396,1740475841212,-500.0,0.00071229,120]
[354409399,1740475841222,-500.0,0.00071229,120]
[354409401,1740475841232,-500.0,0.00071229,120]
[354409403,1740475841242,-500.0,0.00071229,120]
[354409404,1740475841253,-500.0,0.00071229,120]
[354409406,1740475841263,-1000.35,0.00071229,120]
[354409409,1740475841272,-500.0,0.00071229,120]
[354409410,1740475841281,-600.0,0.00071229,120]
[354409412,1740475841291,-500.0,0.00071229,120]
[354409414,1740475841301,-500.0,0.00071229,120]
[354409417,1740475841311,-500.0,0.00071229,120]
[354409419,1740475841321,-1854.12,0.00071229,120]
[354409421,1740475841330,-500.0,0.00071229,120]
[354409423,1740475841340,-500.0,0.00071229,120]
[354409424,1740475841350,-500.0,0.00071229,120]
[354409426,1740475841360,-500.0,0.00071229,120]
[354409428,1740475841369,-713.01,0.00071229,120]
[354409430,1740475841380,-2917.46,0.00071229,120]
[354409432,1740475841390,-4305.12,0.00071229,120]
[354409434,1740475841400,-500.0,0.00071229,120]
[354409436,1740475841415,-500.0,0.00071229,120]
[354409438,1740475841425,-984.11,0.0007123,120]
[354409440,1740475841435,-500.0,0.0007123,120]
[354409442,1740475841444,-500.0,0.0007123,120]
[354409444,1740475841454,-500.0,0.0007123,120]
[354409446,1740475841464,-500.0,0.0007123,120]
[354409448,1740475841474,-500.0,0.0007123,120]
[354409450,1740475841486,-500.0,0.0007123,120]
[354409452,1740475841496,-500.0,0.0007123,120]
[354409454,1740475841512,-22226.92,0.000713,30]
[354409457,1740475841524,-500.0,0.00071364,3]
[354409459,1740475841534,-500.0,0.00071364,120]
[354409461,1740475841543,-500.0,0.00071364,120]
[354409463,1740475841553,-325.38,0.00071364,120]
[354409465,1740475841563,-402.43,0.00071364,120]
[354409467,1740475841572,-4390.78,0.00071364,7]
[354409468,1740475841582,-500.0,0.00071368,120]
[354409470,1740475841591,-1401.18,0.00071368,120]
[354409472,1740475841601,-181.99260435,0.00071494,6]
[354409474,1740475841610,-500.0,0.00071502,120]
[354409476,1740475841620,-418.99171211,0.00071502,120]
[354409478,1740475841629,-177.571278,0.00071502,2]
[354409480,1740475841639,-500.0,0.00071502,120]
[354409482,1740475841648,-435.8270837,0.00071502,120]
[354409483,1740475841657,-500.0,0.00071503,120]
[354409485,1740475841666,-535.49,0.00071503,120]
[354409486,1740475841675,-500.0,0.00071503,120]
[354409487,1740475841684,-500.0,0.00071503,120]
[354409488,1740475841694,-500.0,0.00071503,120]
[354409489,1740475841703,-500.0,0.00071503,120]
[354409490,1740475841712,-500.0,0.00071503,120]
[354409491,1740475841721,-1000.0,0.00071503,120]
[354409492,1740475841731,-1000.35,0.00071503,120]
[354409493,1740475841740,-500.0,0.00071503,120]
[354409494,1740475841751,-500.0,0.00071503,120]
[354409495,1740475841761,-500.0,0.00071503,120]
[354409496,1740475841770,-451.29481792,0.00071503,120]
[354409497,1740475841779,-500.0,0.00071503,120]
[354409498,1740475841788,-500.0,0.00071503,120]
[354409499,1740475841797,-500.0,0.00071503,120]
[354409500,1740475841806,-1854.12,0.00071503,120]
[354409501,1740475841816,-500.0,0.00071503,120]
[354409502,1740475841825,-500.0,0.00071503,120]
[354409503,1740475841835,-500.0,0.00071503,120]
[354409504,1740475841844,-500.0,0.00071503,120]
[354409505,1740475841854,-713.01,0.00071503,120]
[354409506,1740475841863,-2917.46,0.00071503,120]
[354409507,1740475841872,-4305.12,0.00071503,120]
[354409508,1740475841882,-500.0,0.00071503,120]
[354409509,1740475841891,-500.0,0.00071503,120]
[354409510,1740475841901,-984.11,0.00071504,120]
[354409511,1740475841910,-500.0,0.00071504,120]
[354409512,1740475841919,-500.0,0.00071504,120]
[354409513,1740475841929,-500.0,0.00071504,120]
[354409514,1740475841938,-500.0,0.00071504,120]
[354409515,1740475841948,-500.0,0.00071638,3]
[354409516,1740475841958,-500.0,0.00071638,120]
[354409517,1740475841967,-4390.78,0.00071638,7]
[354409518,1740475841977,-400.55,0.00071642,120]
[354409519,1740475841986,-1401.18,0.00071642,120]
[354409520,1740475841995,-500.0,0.00071777,120]
[354409521,1740475842005,-500.0,0.00071777,120]
[354409522,1740475842014,-500.0,0.00071777,120]
[354409523,1740475842024,-633.35,0.00071777,120]
[354409524,1740475842033,-439.94796735,0.00071777,120]
[354409525,1740475842042,-1000.35,0.00071777,120]
[354409526,1740475842051,-500.0,0.00071777,120]
[354409527,1740475842061,-500.0,0.00071777,120]
[354409528,1740475842070,-1854.12,0.00071777,120]
[354409529,1740475842079,-500.0,0.00071777,120]
[354409530,1740475842089,-631.0,0.00071777,120]
[354409531,1740475842098,-500.0,0.00071777,120]
[354409532,1740475842107,-500.0,0.00071777,120]
[354409533,1740475842117,-713.01,0.00071777,120]
[354409534,1740475842126,-2917.46,0.00071777,120]
[354409535,1740475842137,-4305.12,0.00071777,120]
[354409536,1740475842146,-500.0,0.00071777,120]
[354409537,1740475842155,-500.0,0.00071777,120]
[354409538,1740475842164,-984.11,0.00071778,120]
[354409539,1740475842173,-500.0,0.00071778,120]
[354409540,1740475842183,-500.0,0.00071778,120]
[354409541,1740475842192,-500.0,0.00071778,120]
[354409542,1740475842202,-500.0,0.00071912,3]
[354409543,1740475842211,-500.0,0.00071912,120]
[354409544,1740475842221,-4390.78,0.00071912,7]
[354409545,1740475842230,-1401.18,0.00071916,120]
[354409546,1740475842239,-500.0,0.00072051,120]
[354409547,1740475842249,-500.0,0.00072051,120]
[354409548,1740475842261,-1000.35,0.00072051,120]
[354409549,1740475842270,-500.0,0.00072051,120]
[354409550,1740475842280,-1854.12,0.00072051,120]
[354409554,1740475842374,-500.0,0.00072051,120]
[354409556,1740475842383,-500.0,0.00072051,120]
[354409558,1740475842393,-500.0,0.00072051,120]
[354409560,1740475842403,-713.01,0.00072051,120]
[354409562,1740475842412,-2917.46,0.00072051,120]
[354409563,1740475842424,-4305.12,0.00072051,120]
[354409564,1740475842433,-500.0,0.00072051,120]
[354409565,1740475842442,-500.0,0.00072051,120]
[354409566,1740475842452,-984.11,0.00072052,120]
[354409567,1740475842461,-500.0,0.00072052,120]
[354409568,1740475842472,-181.5276426,0.00072052,120]
[354409569,1740475842481,-500.0,0.00072052,120]
[354409570,1740475842490,-503.00194578,0.00072154,15]
[354409571,1740475842500,-181.99260435,0.00072176,6]
[354409573,1740475842511,-500.0,0.00072186,3]
[354409574,1740475842521,-500.0,0.00072186,120]
[354409576,1740475842530,-4390.78,0.00072186,7]
[354409578,1740475842540,-1401.18,0.0007219,120]
[354409580,1740475842549,-500.0,0.00072325,120]
[354409582,1740475842559,-500.0,0.00072325,120]
[354409586,1740475842569,-1000.35,0.00072325,120]
[354409587,1740475842579,-500.0,0.00072325,120]
[354409590,1740475842589,-1854.12,0.00072325,120]
[354409593,1740475842598,-500.0,0.00072325,120]
[354409596,1740475842608,-570.8,0.00072325,120]
[354409599,1740475842618,-500.0,0.00072325,120]
[354409602,1740475842627,-713.01,0.00072325,120]
[354409605,1740475842637,-2917.46,0.00072325,120]
[354409608,1740475842646,-4305.12,0.00072325,120]
[354409611,1740475842656,-500.0,0.00072325,120]
[354409614,1740475842665,-643.51,0.00072325,120]
[354409618,1740475842675,-984.11,0.00072326,120]
[354409621,1740475842685,-500.0,0.00072326,120]
[354409623,1740475842694,-500.0,0.00072326,120]
[354409626,1740475842704,-500.0,0.0007246,3]
[354409628,1740475842714,-500.0,0.0007246,120]
[354409630,1740475842724,-4390.78,0.0007246,7]
[354409632,1740475842733,-1401.18,0.00072464,120]
[354409634,1740475842743,-500.0,0.00072599,120]
[354409636,1740475842754,-500.0,0.00072599,120]
[354409638,1740475842763,-1000.35,0.00072599,120]
[354409640,1740475842773,-500.0,0.00072599,120]
[354409642,1740475842782,-1854.12,0.00072599,120]
[354409644,1740475842792,-500.0,0.00072599,120]
[354409646,1740475842801,-713.01,0.00072599,120]
[354409648,1740475842811,-2917.46,0.00072599,120]
[354409650,1740475842821,-4305.12,0.00072599,120]
[354409651,1740475842830,-500.0,0.00072599,120]
[354409653,1740475842840,-984.11,0.000726,120]
[354409655,1740475842849,-500.0,0.000726,120]
[354409657,1740475842858,-500.0,0.000726,120]
[354409659,1740475842868,-500.0,0.00072734,3]
[354409661,1740475842878,-500.0,0.00072734,120]
[354409663,1740475842887,-4390.78,0.00072734,7]
[354409665,1740475842896,-1401.18,0.00072738,120]
[354409667,1740475842906,-181.99260435,0.00072863,6]
[354409668,1740475842915,-500.0,0.00072873,120]
[354409670,1740475842925,-500.0,0.00072873,120]
[354409672,1740475842935,-1000.35,0.00072873,120]
[354409674,1740475842945,-1854.12,0.00072873,120]
[354409676,1740475842955,-500.0,0.00072873,120]
[354409678,1740475842965,-713.01,0.00072873,120]
[354409680,1740475842974,-2917.46,0.00072873,120]
[354409682,1740475842985,-4305.12,0.00072873,120]
[354409683,1740475842995,-500.0,0.00072873,120]
[354409685,1740475843007,-984.11,0.00072874,120]
[354409688,1740475843027,-500.0,0.00072874,120]
[354409690,1740475843040,-500.0,0.00072874,120]
[354409692,1740475843051,-500.0,0.00073008,3]
[354409694,1740475843062,-152.26083208,0.00073008,120]
[354409696,1740475843073,-4390.78,0.00073008,7]
[354409698,1740475843084,-1401.18,0.00073012,120]
[354409700,1740475843095,-500.0,0.00073147,120]
[354409702,1740475843106,-500.0,0.00073147,120]
[354409704,1740475843116,-1000.35,0.00073147,120]
[354409706,1740475843126,-1854.12,0.00073147,120]
[354409708,1740475843137,-500.0,0.00073147,120]
[354409710,1740475843147,-713.01,0.00073147,120]
[354409711,1740475843158,-2917.46,0.00073147,120]
[354409713,1740475843168,-4305.12,0.00073147,120]
[354409715,1740475843178,-500.0,0.00073147,120]
[354409717,1740475843189,-984.11,0.00073148,120]
[354409719,1740475843199,-500.0,0.00073148,120]
[354409721,1740475843210,-500.0,0.00073148,120]
[354409723,1740475843220,-500.0,0.00073282,3]
[354409725,1740475843230,-4390.78,0.00073282,7]
[354409728,1740475843241,-1401.18,0.00073286,120]
[354409731,1740475843251,-500.0,0.00073421,120]
[354409733,1740475843262,-500.0,0.00073421,120]
[354409736,1740475843272,-1000.35,0.00073421,120]
[354409738,1740475843282,-1854.12,0.00073421,120]
[354409741,1740475843292,-500.0,0.00073421,120]
[354409744,1740475843302,-713.01,0.00073421,120]
[354409746,1740475843313,-2917.46,0.00073421,120]
[354409747,1740475843323,-4305.12,0.00073421,120]
[354409750,1740475843341,-500.0,0.00073421,120]
[354409753,1740475843358,-984.11,0.00073422,120]
[354409755,1740475843373,-500.0,0.00073422,120]
[354409757,1740475843388,-500.0,0.00073422,120]
[354409761,1740475843403,-181.99260435,0.00073546,6]
[354409765,1740475843418,-500.0,0.00073556,3]
[354409768,1740475843431,-4390.78,0.00073556,7]
[354409770,1740475843446,-1401.18,0.0007356,120]
[354409773,1740475843459,-500.0,0.00073695,120]
[354409775,1740475843472,-500.0,0.00073695,120]
[354409778,1740475843485,-1000.35,0.00073695,120]
[354409780,1740475843498,-1854.12,0.00073695,120]
[354409781,1740475843514,-500.0,0.00073695,120]
[354409782,1740475843527,-713.01,0.00073695,120]
[354409783,1740475843541,-2917.46,0.00073695,120]
[354409784,1740475843555,-4305.12,0.00073695,120]
[354409785,1740475843567,-500.0,0.00073695,120]
[354409786,1740475843579,-984.11,0.00073696,120]
[354409787,1740475843592,-500.0,0.00073696,120]
[354409788,1740475843606,-500.0,0.00073696,120]
[354409789,1740475843620,-500.0,0.0007383,3]
[354409790,1740475843634,-4390.78,0.0007383,7]
[354409791,1740475843647,-1401.18,0.00073834,120]
[354409792,1740475843660,-181.99260435,0.0007396,6]
[354409793,1740475843671,-500.0,0.00073969,120]
[354409794,1740475843681,-500.0,0.00073969,120]
[354409795,1740475843692,-1000.35,0.00073969,120]
[354409796,1740475843705,-1854.12,0.00073969,120]
[354409797,1740475843717,-500.0,0.00073969,120]
[354409798,1740475843729,-713.01,0.00073969,120]
[354409799,1740475843742,-2917.46,0.00073969,120]
[354409800,1740475843756,-4305.12,0.00073969,120]
[354409801,1740475843769,-500.0,0.00073969,120]
[354409802,1740475843783,-984.11,0.0007397,120]
[354409803,1740475843797,-500.0,0.0007397,120]
[354409804,1740475843811,-500.0,0.0007397,120]
[354409805,1740475843824,-500.0,0.00074104,3]
[354409806,1740475843835,-4390.78,0.00074104,7]
[354409807,1740475843849,-1401.18,0.00074108,120]
[354409808,1740475843861,-845.42,0.000742,30]
[354409809,1740475843872,-22226.92,0.000742,30]
[354409810,1740475843885,-500.0,0.00074243,120]
[354409811,1740475843898,-500.0,0.00074243,120]
[354409812,1740475843912,-1000.35,0.00074243,120]
[354409813,1740475843923,-1854.12,0.00074243,120]
[354409814,1740475843934,-500.0,0.00074243,120]
[354409815,1740475843946,-713.01,0.00074243,120]
[354409816,1740475843958,-2917.46,0.00074243,120]
[354409817,1740475843970,-4305.12,0.00074243,120]
[354409818,1740475843983,-500.0,0.00074243,120]
[354409819,1740475843996,-984.11,0.00074244,120]
[354409820,1740475844007,-500.0,0.00074244,120]
[354409821,1740475844018,-500.0,0.00074244,120]
[354409822,1740475844031,-1073.03,0.000743,30]
[354409823,1740475844042,-1419.51,0.000743,30]
[354409824,1740475844054,-500.0,0.00074378,3]
[354409825,1740475844066,-4390.78,0.00074378,7]
[354409826,1740475844079,-1401.18,0.00074382,120]
[354409827,1740475844092,-500.0,0.00074517,120]
[354409828,1740475844103,-500.0,0.00074517,120]
[354409829,1740475844116,-1000.35,0.00074517,120]
[354409830,1740475844128,-1854.12,0.00074517,120]
[354409831,1740475844140,-500.0,0.00074517,120]
[354409832,1740475844154,-713.01,0.00074517,120]
[354409833,1740475844167,-2917.46,0.00074517,120]
[354409834,1740475844179,-4305.12,0.00074517,120]
[354409835,1740475844191,-500.0,0.00074517,120]
[354409836,1740475844203,-984.11,0.00074518,120]
[354409837,1740475844214,-273.74158575,0.00074518,120]
[354409838,1740475844226,-500.0,0.00074518,120]
[354409839,1740475844239,-181.99260435,0.00074642,6]
[354409840,1740475844250,-500.0,0.00074652,3]
[354409841,1740475844263,-4390.78,0.00074652,7]
[354409842,1740475844274,-1401.18,0.00074656,120]
[354409843,1740475844286,-500.0,0.00074791,120]
[354409844,1740475844297,-500.0,0.00074791,120]
[354409845,1740475844308,-1000.35,0.00074791,120]
[354409846,1740475844320,-1854.12,0.00074791,120]
[354409847,1740475844331,-500.0,0.00074791,120]
[354409848,1740475844343,-713.01,0.00074791,120]
[354409849,1740475844354,-2917.46,0.00074791,120]
[354409850,1740475844366,-4305.12,0.00074791,120]
[354409851,1740475844377,-500.0,0.00074791,120]
[354409852,1740475844389,-984.11,0.00074792,120]
[354409853,1740475844401,-604.95922066,0.00074792,120]
[354409854,1740475844412,-500.0,0.00074926,3]
[354409855,1740475844426,-4390.78,0.00074926,7]
[354409856,1740475844439,-1401.18,0.0007493,120]
[354409857,1740475844450,-12492.21715191,0.00075,3]
[354409858,1740475844462,-500.0,0.00075065,120]
[354409859,1740475844474,-412.77126005,0.00075065,120]
[354409860,1740475844485,-1000.35,0.00075065,120]
[354409861,1740475844497,-1854.12,0.00075065,120]
[354409862,1740475844510,-500.0,0.00075065,120]
[354409863,1740475844636,-713.01,0.00075065,120]
[354409865,1740475844651,-2917.46,0.00075065,120]
[354409866,1740475844660,-4305.12,0.00075065,120]
[354409867,1740475844669,-438.7,0.00075065,120]
[354409868,1740475844679,-984.11,0.00075066,120]
[354409869,1740475844688,-569.8,0.000752,3]
[354409870,1740475844698,-4390.78,0.000752,7]
[354409871,1740475844709,-1401.18,0.00075204,120]
[354409872,1740475844719,-500.0,0.00075339,120]
[354409873,1740475844728,-1000.35,0.00075339,120]
[354409874,1740475844738,-1854.12,0.00075339,120]
[354409875,1740475844747,-500.0,0.00075339,120]
[354409876,1740475844760,-713.01,0.00075339,120]
[354409877,1740475844769,-2917.46,0.00075339,120]
[354409878,1740475844778,-4305.12,0.00075339,120]
[354409879,1740475844787,-984.11,0.0007534,120]
[354409880,1740475844797,-181.99260435,0.00075463,6]
[354409881,1740475844806,-4390.78,0.00075473,7]
[354409882,1740475844816,-1401.18,0.00075478,120]
[354409883,1740475844825,-500.0,0.00075613,120]
[354409884,1740475844834,-1000.35,0.00075613,120]
[354409885,1740475844843,-1854.12,0.00075613,120]
[354409886,1740475844852,-500.0,0.00075613,120]
[354409887,1740475844862,-713.01,0.00075613,120]
[354409888,1740475844871,-2917.46,0.00075613,120]
[354409889,1740475844880,-4305.12,0.00075613,120]
[354409890,1740475844889,-984.11,0.00075614,120]
[354409891,1740475844899,-959.16,0.000757,60]
[354409892,1740475844909,-4390.83161709,0.00075747,7]
[354409893,1740475844918,-1401.18,0.00075752,120]
[354409894,1740475844928,-500.503744,0.00075887,120]
[354409895,1740475844937,-1000.35,0.00075887,120]
[354409896,1740475844947,-1854.12,0.00075887,120]
[354409897,1740475844956,-277.36,0.00075887,120]
[354409898,1740475844966,-713.01,0.00075887,120]
[354409899,1740475844975,-2917.46,0.00075887,120]
[354409900,1740475844984,-4305.12,0.00075887,120]
[354409901,1740475844993,-984.14762552,0.00075888,120]
[354409902,1740475845004,-500.0,0.00075972,120]
[354409903,1740475845013,-1401.18,0.00076026,120]
[354409904,1740475845023,-1000.55,0.00076161,120]
[354409905,1740475845033,-1854.24,0.00076161,120]
[354409906,1740475845043,-713.01,0.00076161,120]
[354409907,1740475845052,-2917.5094984,0.00076161,120]
[354409908,1740475845062,-4305.12,0.00076161,120]
[354409909,1740475845071,-1401.31,0.000763,120]
[354409910,1740475845080,-713.18,0.00076435,120]
[354409911,1740475845089,-4305.29579084,0.00076435,120]
[354409912,1740475845099,-500.0,0.00078437,15]
[354409913,1740475845110,-500.0,0.00078437,15]
[354409914,1740475845120,-262.09523234,0.00078487,15]
[354409915,1740475845129,-586.787295,0.00078985,15]
[354409916,1740475845151,-502.14957943,0.00078985,15]
[354409917,1740475845162,-500.0,0.00080082,120]
[354409918,1740475845172,-1419.51,0.000801,30]
[354409919,1740475845183,-363.9852087,0.00082182,8]
[354409920,1740475845193,-2908.99,0.00082191,120]
[354409921,1740475845203,-2908.99,0.00082191,120]
[354409922,1740475845214,-2908.99,0.00082191,120]
[354409923,1740475845224,-2908.99,0.00082191,120]
[354409924,1740475845235,-2908.99,0.00082191,120]
[354409925,1740475845245,-2908.99,0.00082191,120]
[354409926,1740475845257,-2908.99,0.00082191,120]
[354409927,1740475845268,-2908.99,0.00082191,120]
[354409928,1740475845278,-2908.99,0.00082191,120]
[354409929,1740475845287,-2908.99,0.00082191,120]
[354409930,1740475845297,-2908.99,0.00082191,120]
[354409931,1740475845307,-2908.99,0.00082191,120]
[354409932,1740475845317,-2908.99,0.00082191,120]
[354409933,1740475845327,-2908.99,0.00082191,120]
[354409934,1740475845336,-2908.99,0.00082191,120]
[354409935,1740475845347,-2908.99,0.00082191,120]
[354409936,1740475845357,-2908.99,0.00082191,120]
[354409937,1740475845368,-1073.99436981,0.00082191,120]
[354409938,1740475845441,-1834.99563019,0.00082191,120]
[354409939,1740475845451,-2908.99,0.00082191,120]
[354409940,1740475845461,-2908.99,0.00082191,120]
[354409942,1740475845471,-2908.99,0.00082191,120]
[354409943,1740475845481,-2908.99,0.00082191,120]
[354409944,1740475845491,-2908.99,0.00082191,120]
[354409945,1740475845502,-1864.07396389,0.00082191,120]
[354409946,1740475845516,-1044.93937411,0.00082191,120]
[354409947,1740475845526,-1015.31526873,0.00082192,120]
[354409948,1740475845535,-1015.31526873,0.00082192,120]
[354409949,1740475845545,-1015.31526873,0.00082192,120]
[354409951,1740475845554,-1015.31526873,0.00082192,120]
[354409952,1740475845564,-1015.31526873,0.00082192,120]
[354409953,1740475845573,-1015.31526873,0.00082192,120]
[354409954,1740475845582,-1015.31526873,0.00082192,120]
[354409956,1740475845591,-747.85374478,0.00082192,120]
[354409958,1740475845603,-267.46152395,0.00082192,120]
[354409960,1740475845613,-632.58783131,0.00082192,120]
[354409962,1740475845624,-382.72743742,0.00082192,120]
[354409964,1740475845634,-125.08341415,0.00082192,120]
[354409991,1740475845871,-500.0,0.00071502,120]
[354409993,1740475845881,-500.0,0.00071502,120]
[354409996,1740475845891,-500.0,0.00071502,120]
[354409998,1740475845900,-500.0,0.00071502,120]
[354410000,1740475845910,-500.0,0.00071502,120]
[354410002,1740475845919,-305.13865588,0.00071502,120]
[354410004,1740475845930,-203.9,0.00072589,10]
[354410006,1740475845939,-859.67992777,0.00073829,120]
[354410008,1740475845948,-859.67992777,0.00073829,120]
[354410010,1740475845957,-859.67992777,0.00073829,120]
[354410012,1740475845968,-859.67992777,0.00073829,120]
[354410014,1740475845978,-859.67992777,0.00073829,120]
[354410016,1740475845987,-859.67992777,0.00073829,120]
[354410018,1740475845997,-859.67992777,0.00073829,120]
[354410020,1740475846009,-859.67992777,0.00073829,120]
[354410022,1740475846019,-859.67992777,0.00073829,120]
[354410024,1740475846029,-859.67992777,0.00073829,120]
[354410026,1740475846040,-859.67992777,0.00073829,120]
[354410028,1740475846050,-859.67992777,0.00073829,120]
[354410032,1740475846060,-859.67992777,0.00073829,120]
[354410035,1740475846070,-859.67992777,0.00073829,120]
[354410037,1740475846080,-859.67992777,0.00073829,120]
[354410039,1740475846090,-890.23185458,0.00082192,120]
[354410040,1740475846100,-1015.31526873,0.00082192,120]
[354410041,1740475846110,-1015.31526873,0.00082192,120]
[354410042,1740475846119,-1015.31526873,0.00082192,120]
[354410045,1740475846129,-1015.31526873,0.00082192,120]
[354410048,1740475846139,-1015.31526873,0.00082192,120]
[354410050,1740475846148,-1015.31526873,0.00082192,120]
[354410052,1740475846158,-1015.31526873,0.00082192,120]
[354410054,1740475846169,-1015.31526873,0.00082192,120]
[354410056,1740475846179,-1015.31526873,0.00082192,120]
[354410058,1740475846190,-1015.31526873,0.00082192,120]
[354410060,1740475846200,-1015.31526873,0.00082192,120]
[354410062,1740475846210,-1015.31526873,0.00082192,120]
[354410064,1740475846219,-1015.31526873,0.00082192,120]
[354410066,1740475846229,-1015.31526873,0.00082192,120]
[354410068,1740475846239,-1015.31526873,0.00082192,120]
[354410069,1740475846249,-1015.31526873,0.00082192,120]
[354410070,1740475846263,-1015.31526873,0.00082192,120]
[354410071,1740475846272,-1015.31526873,0.00082192,120]
[354410072,1740475846282,-1015.31526873,0.00082192,120]
[354410073,1740475846291,-1015.31526873,0.00082192,120]
[354410074,1740475846301,-1015.31526873,0.00082192,120]
[354410075,1740475846311,-1015.31526873,0.00082192,120]
[354410076,1740475846320,-1015.31526873,0.00082192,120]
[354410077,1740475846329,-1015.31526873,0.00082192,120]
[354410078,1740475846340,-1015.31526873,0.00082192,120]
[354410079,1740475846350,-1015.31526873,0.00082192,120]
[354410080,1740475846361,-1015.31526873,0.00082192,120]
[354410081,1740475846371,-1015.31526873,0.00082192,120]
[354410082,1740475846381,-1015.31526873,0.00082192,120]
[354410083,1740475846390,-1015.31526873,0.00082192,120]
[354410084,1740475846399,-1015.31526873,0.00082192,120]
[354410085,1740475846412,-1015.31526873,0.00082192,120]
[354410086,1740475846424,-1015.31526873,0.00082192,120]
[354410087,1740475846434,-1015.31526873,0.00082192,120]
[354410088,1740475846443,-1015.31526873,0.00082192,120]
[354410090,1740475846453,-1015.31526873,0.00082192,120]
[354410092,1740475846463,-1015.31526873,0.00082192,120]
[354410094,1740475846472,-1015.31526873,0.00082192,120]
[354410096,1740475846482,-1015.31526873,0.00082192,120]
[354410098,1740475846492,-1015.31526873,0.00082192,120]
[354410100,1740475846502,-1007.50515127,0.00082192,120]
[354410101,1740475846514,-1007.50515127,0.00082192,120]
[354410102,1740475846524,-1007.50515127,0.00082192,120]
[354410103,1740475846533,-1007.50515127,0.00082192,120]
[354410104,1740475846542,-1007.50515127,0.00082192,120]
[354410105,1740475846552,-1007.50515127,0.00082192,120]
[354410106,1740475846561,-1007.50515127,0.00082192,120]